[Event "Sardinia World Festival-A 2024"]
[Site "Orosei"]
[Date "2024.04.30"]
[Round "5.20"]
[White "Agmanov, Zhandos"]
[Black "Bellia, Fabrizio"]
[Result "1/2-1/2"]
[ECO "C92"]
[WhiteElo "2458"]
[BlackElo "2384"]
[Annotator "TA"]
[PlyCount "63"]
[EventDate "2024.04.26"]
[EventType "swiss"]
[EventCountry "ITA"]
[SourceTitle "playchess.com"]
[Source "ChessBase"]
[SourceQuality "1"]
[TimeControl "40/5400+30:1800+30"]

{[%evp 19,63,24,20,24,38,12,19,21,33,5,16,6,14,13,21,12,21,27,27,18,65,30,25,30,19,0,1,0,0,-15,0,0,0,0,0,-35,-30,-31,-23,-43,-29,-31,-27,-18,-1,-10]} 1. e4 {[%emt 0:00:13]} e5 {[%emt 0:00:06]} 2. Nf3 {[%emt 0:00:20]} Nc6 {[%emt 0:00:05]} 3. Bb5 {[%emt 0:00:05][%cal Bf1b5,Bb5a4,Ba4b3,Bb3a2][%mdl 32]} a6 {[%emt 0:00:05]} 4. Ba4 {[%emt 0:00:06]} Nf6 {[%emt 0:00:05]} 5. O-O {[%emt 0:00:08]} Be7 {[%emt 0:00:03]} 6. Re1 {[%emt 0:00:15]} b5 {[%emt 0:00:06]} 7. Bb3 {[%emt 0:00:04]} d6 {[%emt 0:00:04]} 8. c3 {[%emt 0:00:27]} O-O {[%emt 0:00:09]} 9. h3 {[%emt 0:00:04]} Bb7 {[%emt 0:00:17]} 10. d4 {[%emt 0:00:36]} Re8 {[%emt 0:00:11]} 11. a3 {[%emt 0:00:46]} h6 {[%emt 0:00:12]} 12. Ba2 {[%emt 0:01:45]} Bf8 {[%emt 0:01:29]} 13. d5 {[%emt 0:00:23]} (13. Nbd2 {seems wilder.} Nb8 14. b4 exd4 15. cxd4 Nxe4 16. Bxf7+ Kxf7 17. Qb3+) 13... Nb8 {[%emt 0:01:32][%cal Bc6b8,Bb8d7,Bd7c5][%mdl 32]} 14. b3 {[%emt 0:00:29]} Nbd7 {[%emt 0:01:07]} 15. c4 {[%emt 0:00:48]} c6 {[%emt 0:07:16]} 16. Nc3 {[%emt 0:05:23]} bxc4 {[%emt 0:00:32]} 17. bxc4 {[%emt 0:02:26]} Nc5 {[%emt 0:00:29]} 18. Bb1 {[%emt 0:13:10]} Qc7 {[%emt 0:06:08]} 19. Be3 {[%emt 0:07:08]} Reb8 {[%emt 0:04:54]} (19... cxd5 $11 {deserves consideration.} 20. cxd5 a5) 20. Bc2 {[%emt 0:06:11] White is more active.} cxd5 {[%emt 0:07:42]} 21. cxd5 {[%emt 0:03:31]} Bc8 {[%emt 0:00:14]} 22. Bd2 {[%emt 0:12:30]} Bd7 {[%emt 0:01:49]} 23. Rb1 {[%emt 0:00:43]} Rxb1 {[%emt 0:04:50]} 24. Qxb1 {[%emt 0:00:11]} Be7 {[%emt 0:01:57]} 25. Qa2 {[%emt 0:04:23]} Qc8 {[%emt 0:01:27]} 26. Kh2 {[%emt 0:08:25]} Bd8 {[%emt 0:01:14]} 27. Rc1 {[%emt 0:02:43]} Ba5 {[%emt 0:03:42]} 28. Ne2 {[%emt 0:04:51]} Qd8 {[%emt 0:06:01]} 29. Ng3 {[%emt 0:02:13]} Bxd2 {[%emt 0:03:50]} 30. Nxd2 {[%emt 0:00:02]} Rc8 {[%emt 0:03:29][%cal Oc5d3]} 31. Rb1 {[%emt 0:02:06]} h5 {[%emt 0:00:56]} 32. a4 {[%emt 0:10:21] Weighted Error Value: White=0.08 (flawless) /Black=0.06 (flawless) .  Mistake:       	---       	Black=1      Inaccurate:     	White=4     	---        OK:         	White=10    	Black=9      Best:        	---       	Black=1} 1/2-1/2

[Event "Sardinia World Festival-A 2024"]
[Site "Orosei"]
[Date "2024.04.30"]
[Round "5.21"]
[White "Citak, Selim"]
[Black "Bronstein, Or"]
[Result "0-1"]
[ECO "E11"]
[WhiteElo "2327"]
[BlackElo "2458"]
[Annotator "TA"]
[PlyCount "136"]
[EventDate "2024.04.26"]
[EventType "swiss"]
[EventCountry "ITA"]
[SourceTitle "playchess.com"]
[Source "ChessBase"]
[SourceQuality "1"]
[TimeControl "40/5400+30:1800+30"]

{[%evp 54,136,-205,-212,-204,-195,-206,-214,-212,-215,-226,-419,-422,-442,-434,-405,-409,-409,-406,-609,-602,-637,-647,-639,-117,-117,-119,-287,-205,-207,-117,-122,-114,-108,-14,-17,-27,-231,-32,-35,-20,-68,-72,-72,0,-68,0,0,0,-60,-59,-264,-260,-435,-436,-437,-414,-345,-265,-239,0,-319,-121,-29971,-280,-1040,-1039,-982,-968,-927,-708,-842,-82,-303,-268,-250,0,-860,-914,-914,-914,-914,-914,-914,-914]} 1. d4 {[%emt 0:03:43]} Nf6 {[%emt 0:05:48]} 2. c4 {[%emt 0:00:14]} e6 {[%emt 0:00:43]} 3. Nf3 {[%emt 0:00:35]} Bb4+ {[%emt 0:06:05]} 4. Nbd2 {[%emt 0:00:31]} O-O {[%emt 0:00:09]} 5. a3 {[%emt 0:00:24]} Be7 {[%emt 0:00:06]} 6. e4 {[%emt 0:00:30]} d6 {[%emt 0:00:02] E11: Bogo-Indian.} 7. Be2 {[%emt 0:00:23] 7.Be2 is better than 7.Bd3.} a5 {[%emt 0:01:38]} 8. b3 {[%emt 0:06:54]} e5 {[%emt 0:06:05]} 9. dxe5 {[%emt 0:07:42]} dxe5 {[%emt 0:00:06]} 10. Bb2 {[%emt 0:00:14]} Nfd7 {[%emt 0:08:48]} 11. Nxe5 {[%emt 0:05:43]} Nxe5 {[%emt 0:00:59]} 12. Bxe5 {[%emt 0:00:15]} Nc6 {[%emt 0:00:02]} 13. Bb2 $146 {[%emt 0:08:34]} ({Predecessor:} 13. Bc3 Bd6 14. O-O Qh4 15. g3 Qe7 16. Qc1 f5 17. Re1 f4 18. e5 fxg3 19. hxg3 Bxe5 {1-0 Goganov,A (2575)-Jobava,B (2676) Moscow Aeroflot op-A 15th 2016 (1)}) 13... Bf6 {[%emt 0:02:21]} 14. Qc2 {[%emt 0:07:10]} Nd4 {[%emt 0:06:22]} 15. Bxd4 {[%emt 0:00:19]} Bxd4 {[%emt 0:01:18]} 16. Rd1 {[%emt 0:00:56]} Qe7 {[%emt 0:11:58]} 17. a4 {[%emt 0:03:22]} Ra6 {[%emt 0:03:18]} 18. O-O {[%emt 0:01:00]} Bc5 {[%emt 0:01:18]} 19. Nf3 {[%emt 0:02:08]} Rg6 {[%emt 0:07:26]} 20. Kh1 {[%emt 0:01:34]} b6 {[%emt 0:02:30]} 21. e5 {[%emt 0:05:41]} Rh6 {[%emt 0:10:18]} 22. Bd3 {[%emt 0:09:59]} f5 {[%emt 0:07:41]} 23. exf6 {[%emt 0:05:29]} Qxf6 {[%emt 0:00:01]} 24. Be4 {[%emt 0:02:17]} c6 {[%emt 0:06:12]} 25. Qd3 {[%emt 0:07:48]} Bg4 {[%emt 0:01:38]} 26. h3 {[%emt 0:04:01]} Qf4 {[%emt 0:00:20]} 27. Rfe1 {[%emt 0:09:36]} Bxf2 {[%emt 0:04:22]} 28. Rf1 {[%emt 0:00:05]} Bxh3 $1 {[%emt 0:01:11]} 29. Rxf2 {[%emt 0:02:05]} Bf5+ {[%emt 0:00:24]} 30. Kg1 {[%emt 0:00:21]} Bxe4 {[%emt 0:00:02]} 31. Qd2 {[%emt 0:01:46]} Qb8 {[%emt 0:04:02]} 32. Qg5 $2 {[%emt 0:03:01]} (32. Qd4 {was called for.} Bxf3 33. gxf3) 32... Bxf3 $19 {[%emt 0:00:55]} 33. Rxf3 {[%emt 0:00:03]} Qh2+ {[%emt 0:01:30]} 34. Kf2 {[%emt 0:00:02]} Rxf3+ $1 {[%emt 0:00:11]} 35. Kxf3 {[%emt 0:00:05]} Rf6+ {[%emt 0:00:06]} 36. Ke2 {[%emt 0:01:54]} (36. Ke4 $142 h6 37. Qg4) 36... h6 $1 $19 {[%emt 0:00:43]} 37. Rd8+ {[%emt 0:00:41]} Kh7 {[%emt 0:00:10]} 38. Qg4 {[%emt 0:00:09]} Rf4 $2 {[%emt 0:01:59]} (38... Qe5+ $1 $19 {and Black stays clearly on top.} 39. Kd3 Rf4) 39. Qh3 $17 {[%emt 0:01:02]} Re4+ {[%emt 0:00:26]} 40. Kd3 $2 {[%emt 0:00:45]} (40. Kf2 $17 Qe5 41. Qd3) 40... Qe5 {[%emt 0:00:42]} 41. Qf3 {[%emt 0:07:15]} Rf4 {[%emt 0:08:29]} (41... Re1 $19 {White must now prevent ...h5.} 42. Rd4 h5) 42. Qxc6 $17 {[%emt 0:00:55]} Qf5+ {[%emt 0:00:28]} 43. Kc3 {[%emt 0:00:35] [#]} Rf1 {[%emt 0:03:24]} (43... Rg4 $1 $17 {[%cal Rg4g3] And now ...Rg3+ would win.} 44. Qf3 Qe5+ 45. Kc2 Qg5) 44. Rd2 $1 $11 {[%emt 0:08:20]} Rc1+ {[%emt 0:10:05]} 45. Kb2 $2 {[%emt 0:07:24]} (45. Kd4 $11 {and White is okay.}) 45... Rb1+ $2 {[%emt 0:07:36]} (45... Qb1+ $19 46. Ka3 Qa1+ 47. Ra2 Qd4) 46. Ka2 $15 {[%emt 0:00:34]} Re1 {[%emt 0:00:04]} 47. Qd5 {[%emt 0:04:48]} (47. Qd6 $11) 47... Qb1+ $15 {[%emt 0:02:28]} 48. Ka3 {[%emt 0:00:01] [#]} Qa1+ $1 {[%emt 0:01:12]} 49. Ra2 {[%emt 0:00:03]} Qc1+ {[%emt 0:00:05]} (49... Qf6 $1 $15) 50. Rb2 $11 {[%emt 0:00:04]} Qa1+ {[%emt 0:00:59]} (50... Qf4 $11 51. Qd3+ Qe4 52. Qxe4+ Rxe4) 51. Ra2 $15 {[%emt 0:00:05]} Qf6 $1 {[%emt 0:00:41]} 52. Qd3+ $2 {[%emt 0:03:04]} ({Better is} 52. c5 $1 $15) 52... Kh8 $19 {[%emt 0:00:07]} 53. Rb2 $2 {[%emt 0:02:37]} (53. Qd5) 53... Ra1+ $19 {[%emt 0:00:41]} 54. Ra2 {[%emt 0:00:01]} Qe7+ {[%emt 0:00:20]} 55. Kb2 {[%emt 0:00:02]} Qe5+ {[%emt 0:00:09]} 56. Ka3 {[%emt 0:00:19]} Qe7+ {[%emt 0:00:12]} 57. Kb2 {[%emt 0:00:03]} Rg1 $2 {[%emt 0:01:00]} (57... Re1 $19 {has better winning chances.} 58. Qf5 Re5) 58. Qd5 $2 {[%emt 0:01:34][%mdl 8192]} (58. Qf3 $17) 58... Re1 $2 {[%emt 0:00:41]} (58... Qe3 {mates} 59. Ra1 Qe2+ (59... Qf2+ $2 60. Kc3 $19) 60. Kc3 Rxa1 (60... Qe3+ $2 61. Qd3 $19) 61. Qd8+ Kh7 62. Qd3+ Qxd3+ 63. Kxd3 h5 64. g3 Rg1 65. Ke4 Rxg3 66. Kf4 h4 (66... Rxb3 {is a self mate.} 67. Kg5 g6 68. c5 Rb4 69. Kf6 bxc5 70. Ke7 c4 71. Kf7 c3 72. Ke8 c2 73. Kd7 Kg7 74. Ke7 c1=Q 75. Ke6 Rd4 76. Ke7 Qe3#) 67. b4 axb4 68. Ke5 b3 69. Ke4 b2 70. Kd5 b1=Q (70... b1=B {leads to mate.} 71. Kd6 h3 72. Kd7 h2 73. Kd8 h1=Q 74. Kc7 Rg6 75. Kb8 Qc6 76. a5 bxa5 77. c5 Be4 78. Ka7 Qc7#) 71. Kc6 Qe4+ 72. Kxb6 Qxc4 73. Ka5 Qc5+ 74. Ka6 Rg6+ 75. Kb7 Rb6+ 76. Ka8 Qa5#) 59. Qd4 $2 {[%emt 0:01:28]} (59. Qa8+ Kh7 60. Qd5) 59... Re4 $19 {[%emt 0:00:40]} 60. Qc3 {[%emt 0:00:50]} Re2+ {[%emt 0:00:35]} 61. Ka1 {[%emt 0:00:03]} Re1+ {[%emt 0:00:07]} 62. Kb2 {[%emt 0:00:09]} Rg1 $2 {[%emt 0:00:55]} (62... Qe4 $19 {is more deadly.} 63. c5 h5 (63... Qxg2+ $2 64. Ka3 $17)) 63. Qd2 $2 {[%emt 0:01:09]} (63. Qf3 $17) 63... Rf1 $19 {[%emt 0:00:32]} 64. Qd4 {[%emt 0:00:33]} Re1 $2 {[%emt 0:00:31]} (64... Qg5 65. Ra1 Qxg2+ 66. Ka3 Qf2 67. Qd8+ Qf8+ 68. Qxf8+ Rxf8) 65. Qc3 $1 $19 {[%emt 0:00:54]} (65. Qxb6 $2 {too greedy.} Re2+ 66. Kc3 Qe5+ (66... Rxa2 $2 67. Qb8+ Kh7 68. Qf4 $19) 67. Kd3 Rxa2 $19) 65... Qe4 {[%emt 0:00:28]} 66. Ka3 {[%emt 0:00:20]} Re3 {[%emt 0:00:16]} 67. Qc1 {[%emt 0:00:58]} Qe7+ {[%emt 0:00:01]} 68. Kb2 {[%emt 0:00:15]} Re2+ {[%emt 0:00:12]} 0-1

[Event "Sardinia World Festival-A 2024"]
[Site "Orosei"]
[Date "2024.04.30"]
[Round "5.22"]
[White "Royal, Shreyas"]
[Black "Hercegovac, Neven"]
[Result "1/2-1/2"]
[ECO "D35"]
[WhiteElo "2455"]
[BlackElo "2344"]
[Annotator "TA"]
[PlyCount "88"]
[EventDate "2024.04.26"]
[EventType "swiss"]
[EventCountry "ITA"]
[SourceTitle "playchess.com"]
[Source "ChessBase"]
[SourceQuality "1"]
[TimeControl "40/5400+30:1800+30"]

{[%evp 15,88,12,0,6,17,12,17,0,0,0,0,-2,0,-46,-27,-56,-18,-7,-17,-35,-29,-38,0,-29,-8,-39,-1,-40,-22,-27,0,-7,0,-16,-19,-16,0,0,0,0,15,9,17,16,31,11,19,12,15,0,56,62,55,4,30,10,19,0,0,-47,-54,-41,0,0,0,0,0,0,0,0,8,0,0,0,12]} 1. d4 {[%emt 0:00:02]} Nf6 {[%emt 0:10:50]} 2. c4 {[%emt 0:00:04]} e6 {[%emt 0:02:31]} 3. Nc3 {[%emt 0:00:10]} d5 {[%emt 0:00:06]} 4. cxd5 {[%emt 0:00:30]} exd5 {[%emt 0:00:07]} 5. Bg5 {[%emt 0:00:05]} Be7 {[%emt 0:00:09]} 6. e3 {[%emt 0:00:06]} h6 {[%emt 0:00:04]} 7. Bf4 {[%emt 0:00:35]} O-O {[%emt 0:00:54]} 8. Bd3 {[%emt 0:01:48]} c5 {[%emt 0:01:47]} 9. Nge2 {[%emt 0:02:02]} Nc6 {[%emt 0:01:50]} 10. O-O {[%emt 0:01:41]} cxd4 {[%emt 0:04:30]} 11. exd4 {[%emt 0:00:49]} Be6 {[%emt 0:02:44]} 12. a3 {[%emt 0:01:02]} Rc8 {[%emt 0:01:30]} 13. Bc2 {[%emt 0:04:02]} Re8 {[%emt 0:03:32]} 14. f3 {[%emt 0:02:50]} (14. Qd3 $11) 14... Bd6 {[%emt 0:01:11]} 15. Bg3 {[%emt 0:13:54]} Nh5 {[%emt 0:21:14]} 16. Bxd6 {[%emt 0:02:00]} Qxd6 {[%emt 0:00:04]} 17. Qd2 {[%emt 0:00:55]} Na5 {[%emt 0:04:51]} 18. b3 {[%emt 0:00:07]} Nc6 {[%emt 0:00:14]} 19. Kh1 {[%emt 0:00:46]} Nf6 {[%emt 0:03:47]} (19... Bd7 {is interesting.} 20. b4 a5 21. b5 Ne7) 20. Rg1 {[%emt 0:01:30]} h5 {[%emt 0:10:02]} 21. Nd1 {[%emt 0:08:30]} Ne7 {[%emt 0:03:13]} (21... Na5 $5) 22. Ne3 {[%emt 0:01:18]} Qd7 {[%emt 0:00:34]} (22... Ng6 {with more complications.} 23. Rge1 Nh4 24. b4 Bd7) 23. b4 {[%emt 0:04:47]} Nf5 {[%emt 0:01:04]} 24. Nxf5 {[%emt 0:00:06]} Bxf5 {[%emt 0:00:05]} 25. Bb3 {[%emt 0:00:02]} Qe7 {[%emt 0:07:48]} 26. Ng3 {[%emt 0:01:45]} Bg6 {[%emt 0:00:46]} 27. Rge1 {[%emt 0:01:12] Inhibits Qe3.} Qc7 {[%emt 0:00:41]} 28. Ne2 {[%emt 0:00:53]} Qd6 {[%emt 0:01:23]} 29. Kg1 {[%emt 0:00:24]} Kf8 {[%emt 0:04:26]} 30. Nf4 {[%emt 0:11:42]} Bf5 {[%emt 0:00:16]} 31. Rxe8+ {[%emt 0:01:10]} (31. Kf2 {keeps more tension.} h4 32. Rac1 b6 33. Rxc8 Bxc8 34. Rxe8+ Nxe8 35. Qe3) 31... Rxe8 {[%emt 0:00:13]} 32. Rc1 {[%emt 0:00:06]} Rc8 {[%emt 0:01:30]} (32... a5 $11) 33. Rxc8+ $14 {[%emt 0:03:17]} Bxc8 {[%emt 0:00:02]} 34. Nd3 {[%emt 0:00:12]} (34. Qc1 $14 Be6 35. Qe3 (35. Qc5 Ke7 $11)) 34... Be6 {[%emt 0:03:37]} 35. Qc1 {[%emt 0:01:47]} b6 {[%emt 0:01:06]} 36. b5 {[%emt 0:02:19]} Bd7 {[%emt 0:02:30]} 37. Ba4 {[%emt 0:02:05]} (37. a4 $11) 37... Ne8 $15 {[%emt 0:04:09]} 38. Ne5 {[%emt 0:00:07]} Nf6 {[%emt 0:01:48]} 39. h4 {[%emt 0:03:33] The position is equal.} Kg8 {[%emt 0:00:20]} 40. Kf2 {[%emt 0:00:23]} Kf8 {[%emt 0:00:12]} 41. g3 {[%emt 0:30:23]} Kg8 {[%emt 0:30:06]} 42. Qc3 {[%emt 0:01:07]} Kf8 {[%emt 0:00:31]} 43. Qd3 {[%emt 0:03:58]} Qc7 {[%emt 0:02:31]} 44. Bb3 {[%emt 0:00:11]} Be8 {[%emt 0:00:00] Weighted Error Value: White=0.13 (very precise) /Black=0.14 (very precise) .  Mistake:       	White=3     	Black=1      Inaccurate:     	White=4     	Black=6      OK:         	White=5     	Black=7} 1/2-1/2

[Event "Sardinia World Festival-A 2024"]
[Site "Orosei"]
[Date "2024.04.30"]
[Round "5.23"]
[White "Levin, Guy"]
[Black "Ezra Paul Chambers"]
[Result "1-0"]
[ECO "A07"]
[WhiteElo "2451"]
[BlackElo "2343"]
[Annotator "TA"]
[PlyCount "75"]
[EventDate "2024.04.26"]
[EventType "swiss"]
[EventCountry "ITA"]
[SourceTitle "playchess.com"]
[Source "ChessBase"]
[SourceQuality "1"]
[TimeControl "40/5400+30:1800+30"]

{[%evp 16,75,0,-28,-22,-27,-26,-33,-39,-33,-27,-39,-36,-35,-41,-68,-56,-59,-11,-26,0,-16,17,9,19,30,38,-12,0,0,27,3,24,-4,45,54,54,0,0,0,0,0,15,21,15,4,91,91,327,341,340,339,346,359,344,342,540,530,29975,29978,6732,6341]} 1. Nf3 {[%emt 0:00:08]} d5 {[%emt 0:00:09]} 2. g3 {[%emt 0:00:05]} Nf6 {[%emt 0:00:06]} 3. Bg2 {[%emt 0:00:05]} c6 {[%emt 0:00:13]} 4. b3 {[%emt 0:00:10]} Bg4 {[%emt 0:00:32]} 5. Bb2 {[%emt 0:00:11]} Nbd7 {[%emt 0:00:12]} 6. O-O {[%emt 0:00:11]} Qc7 {[%emt 0:03:13]} 7. d3 {[%emt 0:00:24]} e5 {[%emt 0:00:12]} 8. Nbd2 {[%emt 0:02:13]} Bd6 {[%emt 0:05:53]} 9. e4 {[%emt 0:00:43]} O-O {[%emt 0:01:29]} 10. h3 {[%emt 0:01:24]} Bh5 {[%emt 0:00:24]} 11. Qe1 {[%emt 0:14:38]} Rfe8 {[%emt 0:02:35] Black is slightly better.} 12. Nh4 {[%emt 0:00:46]} a5 {[%emt 0:03:38]} 13. Nf5 {[%emt 0:07:43]} Bf8 {[%emt 0:03:57]} 14. a4 {[%emt 0:03:18]} Bb4 {[%emt 0:09:32]} 15. g4 {[%emt 0:11:57]} Bg6 {[%emt 0:00:20]} 16. Qe3 {[%emt 0:54:34]} dxe4 {[%emt 0:06:22]} (16... Rac8 $15) 17. dxe4 $11 {[%emt 0:00:00]} b5 {[%emt 0:01:31]} 18. Nf3 {[%emt 0:00:00]} bxa4 {[%emt 0:03:00]} 19. Rxa4 {[%emt 0:00:00]} Bc5 {[%emt 0:17:33]} (19... Nc5 $2 20. Rxb4 axb4 21. Qxc5 Bxf5 22. exf5 $18 (22. gxf5 Nxe4 23. Qxb4 Nf6 $18)) 20. Qe2 {[%emt 0:00:00]} Bb6 {[%emt 0:06:36]} 21. Rd1 {[%emt 0:00:00]} (21. Nd2 $14) 21... Nc5 {[%emt 0:08:10][%cal Bd7c5,Bc5b7,Bb7d6][%mdl 32]} (21... Bxf5 {with more complications.} 22. exf5 e4 23. Ng5 e3) 22. Rc4 {[%emt 0:00:00]} Bxf5 {[%emt 0:08:10]} 23. gxf5 {[%emt 0:00:00]} Nb7 {[%emt 0:00:13]} 24. Rd3 {[%emt 0:00:00]} g6 {[%emt 0:05:16]} (24... a4 $11) 25. Rdc3 $14 {[%emt 0:00:00]} c5 {[%emt 0:00:45]} 26. Nh2 {[%emt 0:00:00]} ({White should play} 26. Rd3 $1 $14 a4 27. Rxa4 (27. bxa4 Na5 $11) 27... Rxa4 28. bxa4) 26... Nd6 $11 {[%emt 0:00:56][%csl LRc4,LRf5]} 27. Ra4 {[%emt 0:00:00]} c4 {[%emt 0:00:24]} 28. Ba3 {[%emt 0:00:00]} (28. bxc4 Bd4 (28... gxf5 $2 29. exf5 Rab8 30. Ng4 $16) 29. fxg6 hxg6 $17) 28... Bd4 {[%emt 0:06:39]} 29. Bxd6 {[%emt 0:00:00]} (29. Rf3 {is more complex.} Nfxe4 30. Ng4 Kh8 31. fxg6 f5 32. Bxd6 Nxd6 33. Nf6) 29... Qxd6 {[%emt 0:00:05]} 30. Rcxc4 {[%emt 0:00:00]} Nd7 {[%emt 0:00:13] [#]} (30... Bb6 $11) 31. Qd2 $1 $16 {[%emt 0:00:00][%cal Rc4d4] Hoping for Rxd4.} Nb6 $2 {[%emt 0:03:05] A mistake that costs the game.} (31... Bc5 $16 {keeps fighting.} 32. Qxd6 Bxd6) 32. Rxd4 $18 {[%emt 0:00:00]} (32. Rxa5 $2 Nxc4 33. bxc4 Bxf2+ 34. Qxf2 Rxa5 $19) 32... exd4 {[%emt 0:00:07]} 33. Rxd4 {[%emt 0:00:00][%cal Ba4d4,Bd4d6,Bd6f6][%mdl 32]} Qe7 {[%emt 0:00:45]} 34. Ng4 {[%emt 0:00:18] e5 is the strong threat.} gxf5 {[%emt 0:01:48]} 35. Nh6+ {[%emt 0:01:06]} (35. exf5 Qe1+ 36. Qxe1 Rxe1+ 37. Kh2 Rb8 $16) 35... Kh8 {[%emt 0:00:00]} (35... Kf8 $142 36. Nxf5 (36. exf5 Qe1+ 37. Qxe1 Rxe1+ 38. Kh2 Rae8 $14) 36... Qf6) 36. Rd6 {[%emt 0:00:36]} (36. exf5 Qe1+ 37. Kh2 Qxd2 38. Rxd2 Kg7 $16) (36. Nxf5 Qf6 37. Nh6 Rac8 $18) 36... a4 {[%emt 0:03:24]} 37. Qd4+ {[%emt 0:01:36]} f6 {[%emt 0:00:06]} 38. Rxf6 {[%emt 0:00:17] Weighted Error Value: White=0.08 (flawless) /Black=0.54.  Loses game:     	---       	Black=1      Mistake:       	White=2     	Black=4      Inaccurate:     	White=2     	Black=4      OK:         	White=13    	Black=9      Best:        	White=2     	Black=2      Strong:       	White=1     	---} (38. Qxb6 $2 {is the wrong capture.} axb3 39. Qxb3 (39. cxb3 $2 {too greedy.} Ra1+ 40. Bf1 Rg8+ 41. Nxg8 Qg7+ 42. Kh2 Rxf1 $19) 39... Ra1+ 40. Bf1 Qg7+ $19 (40... Qxd6 41. Nf7+ Kg7 42. Nxd6 Rf8 43. Qb7+ Kh8 44. Qe7 Raa8 45. Kh2) (40... Qxd6 41. Nf7+ Kg7 42. Nxd6 Rf8 43. Qb7+ Kg6 44. Nxf5 Rg8 45. Qb3)) 1-0

[Event "Sardinia World Festival-A 2024"]
[Site "Orosei"]
[Date "2024.04.30"]
[Round "5.24"]
[White "Krawczyk, Flawian"]
[Black "Trost, Edvin"]
[Result "1/2-1/2"]
[ECO "B48"]
[WhiteElo "2315"]
[BlackElo "2434"]
[Annotator "RC"]
[PlyCount "42"]
[EventDate "2024.04.26"]
[EventType "swiss"]
[EventCountry "ITA"]
[SourceTitle "playchess.com"]
[Source "ChessBase"]
[SourceQuality "1"]
[TimeControl "40/5400+30:1800+30"]

1. e4 {[%emt 0:03:40]} c5 {[%emt 0:02:32]} 2. Nf3 {[%emt 0:00:42]} e6 {[%emt 0:00:31]} 3. d4 {[%emt 0:00:05]} cxd4 {[%emt 0:00:06]} 4. Nxd4 {[%emt 0:00:05]} Nf6 {[%emt 0:00:08]} 5. Nc3 {[%emt 0:00:20]} Nc6 {[%emt 0:00:06]} 6. a3 {[%emt 0:02:24]} Be7 {[%emt 0:00:19]} 7. Be2 {[%emt 0:00:52]} O-O {[%emt 0:00:38]} 8. Be3 {[%emt 0:00:10]} Qc7 {[%emt 0:03:18]} 9. O-O {[%emt 0:00:22]} d6 {[%emt 0:01:07]} 10. Kh1 {[%emt 0:03:29]} a6 {[%emt 0:03:12]} 11. f4 {[%emt 0:02:06]} Nxd4 {[%emt 0:03:05]} 12. Bxd4 {[%emt 0:00:10]} e5 {[%emt 0:00:07]} 13. Be3 {[%emt 0:01:47]} exf4 {[%emt 0:00:14]} 14. Bxf4 {[%emt 0:00:27]} Be6 {[%emt 0:00:16]} 15. Qe1 {[%emt 0:01:53]} Bc4 {[%emt 0:25:17]} 16. Bg5 {[%emt 0:12:25]} Rfe8 {[%emt 0:08:11]} 17. Qg3 {[%emt 0:11:27]} Kh8 {[%emt 0:12:28]} 18. Rae1 {[%emt 0:08:53]} Rac8 {[%emt 0:01:54]} 19. Qh4 {[%emt 0:05:13]} Bxe2 {[%emt 0:11:41]} 20. Rxe2 {[%emt 0:03:18]} Qd8 {[%emt 0:02:40]} 21. e5 {[%emt 0:13:15]} Ng8 {[%emt 0:08:06]} 1/2-1/2